bitfinex/quotes_ETHUSD_20241013
["timestamp","ask_amount","ask_price","bid_price","bid_amount"]
[1728844131699,0.85583741,2453.8,2453.7,1.51201861]
[1728844132405,0.85583741,2453.9,2453.7,1.51201861]
[1728844132913,0.85583741,2453.8,2453.7,1.51201861]
[1728844136398,0.85583741,2453.9,2453.7,1.51201861]
[1728844136735,0.85583741,2453.8,2453.7,1.51201861]
[1728844140627,0.85583741,2453.9,2453.7,1.51201861]
[1728844140828,5.35934655,2454.0,2453.8,1.51201861]
[1728844141112,1.28436655,2453.9,2453.8,1.51201861]
[1728844145845,1.28436655,2453.9,2453.7,1.51201861]
[1728844146007,5.35964655,2453.9,2453.6,1.51201861]
[1728844146209,0.8557855,2453.7,2453.6,1.51201861]
[1728844150548,0.8557855,2453.7,2453.6,5.58765861]
[1728844151461,1.28436655,2453.8,2453.6,5.58765861]
[1728844151623,0.85634021,2453.9,2453.7,4.15697753]
[1728844151943,0.85634021,2453.9,2453.8,5.58732861]
[1728844152116,0.85634021,2453.9,2453.8,6.43042614]
[1728844152456,0.85634021,2454.0,2453.9,4.07514]
[1728844152741,0.85634021,2454.0,2453.9,5.58715861]
[1728844152929,0.85634021,2454.1,2454.0,4.07497]
[1728844153130,0.85634021,2454.1,2454.0,5.58698861]
[1728844153338,0.85634021,2454.2,2454.1,4.07481]
[1728844153514,0.85634021,2454.2,2454.1,5.58682861]
[1728844153710,0.85634021,2454.2,2454.1,7.09884722]
[1728844154039,1.28436655,2454.3,2454.2,4.83624]
[1728844154040,0.85634021,2454.3,2454.2,4.83624]
[1728844154235,0.85634021,2454.3,2454.2,7.94176053]
[1728844154412,0.85634021,2454.4,2454.3,4.07448]
[1728844154622,0.85634021,2454.4,2454.3,5.58649861]
[1728844155053,1.28436655,2454.5,2454.3,1.51201861]
[1728844155262,1.28436655,2454.5,2454.4,5.58632861]
[1728844156063,1.28436655,2454.5,2454.4,1.51201861]
[1728844156564,5.35850655,2454.5,2454.2,0.7616]
[1728844156721,0.85559291,2454.3,2454.1,1.51201861]
[1728844156922,0.85559291,2454.3,2454.2,1.51201861]
[1728844157332,0.85559291,2454.4,2454.2,1.51201861]
[1728844157630,0.85559291,2454.4,2454.3,1.51201861]
[1728844158974,4.92990291,2454.4,2454.3,1.51201861]
[1728844159677,0.85559291,2454.4,2454.3,1.51201861]
[1728844160137,4.92990291,2454.4,2454.3,1.51201861]
[1728844160735,4.87806,2454.2,2453.8,4.07528]
[1728844161078,4.87806,2454.2,2454.1,1.51201861]
[1728844166777,4.07491,2454.1,2453.7,0.7643]
[1728844166989,1.65899291,2454.2,2453.9,1.51201861]
[1728844167280,0.85559291,2454.1,2454.0,1.51201861]
[1728844167871,5.73364291,2454.2,2454.0,1.51201861]
[1728844168079,5.73364291,2454.2,2454.1,1.51201861]
[1728844168580,5.73364291,2454.2,2454.0,1.51201861]
[1728844168889,5.73364291,2454.2,2454.1,1.51201861]
[1728844169756,5.73364291,2454.2,2454.0,1.51201861]
[1728844171177,4.93024291,2454.2,2454.0,1.51201861]
[1728844171543,9.00499291,2454.2,2454.0,1.51201861]
[1728844172767,0.85559291,2454.1,2454.0,1.51201861]
[1728844173504,4.93024291,2454.2,2454.0,1.51201861]
[1728844173709,4.93040291,2454.1,2454.0,1.51201861]
[1728844174057,4.07481,2454.1,2454.0,1.51201861]
[1728844174268,4.93040291,2454.1,2454.0,1.51201861]
[1728844175470,4.93040291,2454.1,2453.9,1.51201861]
[1728844175681,4.07481,2454.1,2453.9,1.51201861]
[1728844175903,4.93040291,2454.1,2453.9,1.51201861]
[1728844176106,4.93040291,2454.1,2454.0,1.51201861]
[1728844176599,4.93040291,2454.1,2453.9,1.51201861]
[1728844176980,4.93040291,2454.1,2454.0,1.51201861]
[1728844179510,4.93040291,2454.1,2453.7,0.7643]
[1728844179748,4.93040291,2454.1,2453.9,1.51201861]
[1728844179954,6.20951533,2454.1,2453.9,1.51201861]
[1728844181011,6.20951533,2454.1,2453.6,4.07557]
[1728844181012,0.8192,2454.0,2453.8,1.51201861]
[1728844181219,0.8192,2454.0,2453.9,1.51201861]
[1728844183556,1.67479291,2454.0,2453.9,1.51201861]
[1728844187406,0.85559291,2454.0,2453.9,1.51201861]
[1728844195533,1.28436655,2454.1,2453.9,1.51201861]
[1728844196007,0.85607178,2454.0,2453.9,1.51201861]
[1728844197122,1.28436655,2454.0,2453.9,1.51201861]
[1728844198331,1.28436655,2454.1,2453.9,1.51201861]
[1728844199176,1.28436655,2454.0,2453.9,1.51201861]
[1728844199591,1.69837479,2454.1,2453.9,7.18067962]
[1728844199592,0.85628799,2454.1,2453.9,7.18067962]
[1728844199866,0.85628799,2454.3,2454.1,4.07481]
[1728844200069,0.85628799,2454.4,2454.2,6.33865861]
[1728844200268,1.28436655,2454.4,2454.2,4.82664]
[1728844200478,2.45657479,2454.6,2454.2,4.82664]
[1728844200479,0.85621995,2454.3,2454.2,4.82664]
[1728844200675,0.85621995,2454.3,2454.2,6.33865861]
[1728844201267,1.28436655,2454.5,2454.3,4.62448]
[1728844201268,0.85621995,2454.4,2454.3,4.62448]
[1728844201470,0.85621995,2454.4,2454.3,6.21797767]
[1728844201668,1.28436655,2454.6,2454.3,6.21797767]
[1728844201669,0.85621995,2454.5,2454.3,4.07448]
[1728844201870,0.85621995,2454.5,2454.4,1.51201861]
[1728844202587,0.85621995,2454.5,2454.4,5.58632861]
[1728844203561,0.85621995,2454.5,2454.4,1.51201861]
[1728844204094,0.85621995,2454.5,2454.4,6.88832861]
[1728844204387,1.28436655,2454.7,2454.5,4.07414]
[1728844204552,1.28436655,2454.7,2454.6,1.51201861]
[1728844205312,1.28436655,2454.7,2454.4,1.51201861]
[1728844205313,0.7582,2454.6,2454.4,1.51201861]
[1728844205592,0.85567132,2454.6,2454.5,1.51201861]
[1728844206593,0.85567132,2454.6,2454.5,5.58615861]
[1728844207093,0.85567132,2454.7,2454.6,4.07398]
[1728844207285,0.85567132,2454.7,2454.6,5.58599861]
[1728844207484,0.85567132,2454.7,2454.6,6.33799861]
[1728844208696,0.85567132,2455.1,2454.8,0.752]
[1728844208897,1.28436655,2455.2,2455.0,1.51201861]
[1728844208898,0.85567132,2455.2,2455.0,1.51201861]
[1728844209070,4.07298,2455.2,2455.1,1.51201861]
[1728844209275,0.85567132,2455.3,2455.1,1.51201861]
[1728844209461,0.85567132,2455.3,2455.1,0.752]
[1728844209661,0.85567132,2455.3,2455.2,1.51201861]
[1728844209860,0.97640062,2455.4,2455.2,1.51201861]
[1728844210161,0.97640062,2455.4,2455.3,1.51201861]
[1728844210381,0.1207293,2455.4,2455.3,1.51201861]
[1728844210760,4.1933793,2455.4,2455.2,1.51201861]
[1728844211184,0.1207293,2455.4,2455.2,1.51201861]
[1728844211415,0.1207293,2455.4,2455.3,1.51201861]
[1728844212064,0.1207293,2455.4,2455.2,1.51201861]
[1728844212874,0.1207293,2455.4,2455.3,1.51201861]
[1728844216024,0.1207293,2455.4,2455.3,8.39885722]
[1728844216705,0.1207293,2455.4,2455.3,6.88683861]
[1728844217310,0.1207293,2455.4,2455.3,6.96827246]
[1728844217538,0.1207293,2455.4,2455.3,8.48029107]
[1728844217708,0.1207293,2455.4,2455.3,8.39885722]
[1728844219341,0.1207293,2455.4,2455.3,11.39885722]
[1728844219698,0.42625848,2456.3,2456.1,0.7552]
[1728844219899,0.807,2456.5,2456.1,0.83661979]
[1728844220101,0.807,2456.5,2456.4,1.51201861]
[1728844222394,4.07101,2456.4,2456.3,1.51201861]
[1728844222593,0.807,2456.6,2456.1,0.7552]
[1728844222831,4.07111,2456.4,2456.2,1.51201861]
[1728844222995,4.07111,2456.4,2456.3,1.51201861]
[1728844225241,4.07116,2456.3,2456.2,1.51201861]
[1728844225422,4.07111,2456.4,2456.2,1.51201861]
[1728844225756,0.07085175,2456.9,2456.4,1.3052]
[1728844226040,0.42622955,2457.2,2456.8,1.51201861]
[1728844226041,4.06984,2457.1,2456.8,1.51201861]
[1728844226221,8.13954,2457.2,2457.0,1.51201861]
[1728844226426,4.07027,2456.9,2456.4,0.7552]
[1728844226650,4.07035,2456.8,2456.4,0.7552]
[1728844227435,4.07035,2456.8,2456.7,1.51201861]
[1728844227734,4.0705,2456.7,2456.2,0.55]
[1728844227948,4.07092,2456.5,2456.2,0.55]
[1728844228729,8.14189,2456.5,2456.4,1.51201861]
[1728844228928,4.07102,2456.4,2456.3,1.51201861]
[1728844229605,4.87769,2456.6,2456.3,1.51201861]
[1728844229606,8.9485,2456.6,2456.3,1.51201861]
[1728844229804,4.87769,2456.6,2456.5,1.51201861]
[1728844231405,4.07052,2456.7,2456.5,1.51201861]
[1728844231612,4.07052,2456.7,2456.6,1.51201861]
[1728844232955,4.07026,2456.9,2456.6,2.26721861]
[1728844233250,4.07026,2456.9,2456.8,1.51201861]
[1728844234116,4.87694,2457.1,2456.8,1.51201861]
[1728844234416,4.07002,2457.0,2456.9,1.51201861]
[1728844235614,8.94629,2457.3,2456.9,1.51201861]
[1728844235833,4.87662,2457.3,2457.2,1.51201861]
[1728844236265,4.06967,2457.2,2457.1,1.51201861]
[1728844237248,0.4261356,2457.3,2457.1,1.51201861]
[1728844237442,0.4261356,2457.3,2457.1,2.26401861]
[1728844237642,0.4261356,2457.3,2457.2,1.51201861]
[1728844238074,4.06991,2457.1,2456.7,0.752]
[1728844238387,4.06976,2457.2,2457.0,1.51201861]
[1728844238585,4.06976,2457.2,2456.8,0.05700773]
[1728844238586,4.06976,2457.2,2457.1,1.51201861]
[1728844238743,4.06976,2457.2,2457.0,1.51201861]
[1728844239347,0.4261356,2457.3,2457.0,1.51201861]
[1728844239587,4.4957256,2457.3,2457.1,1.51201861]
[1728844239808,4.4957256,2457.3,2457.0,1.51201861]
[1728844240113,4.4957256,2457.3,2457.0,1.57400544]
[1728844240279,4.4957256,2457.3,2457.0,1.51201861]
[1728844240776,0.7991,2457.2,2456.4,0.752]
[1728844240981,4.07031,2456.9,2456.8,1.51201861]
[1728844241305,4.07031,2456.9,2456.4,4.82291]
[1728844241515,4.07031,2456.9,2456.7,1.51201861]
[1728844241680,8.14059,2456.9,2456.7,1.51201861]
[1728844241874,4.07028,2456.9,2456.8,1.51201861]
[1728844243773,4.07028,2456.9,2456.5,0.55]
[1728844244684,4.07028,2456.9,2456.5,4.62082]
[1728844245086,4.07051,2456.7,2456.4,0.752]
[1728844245409,4.86944,2456.8,2456.4,0.752]
[1728844245906,4.07051,2456.7,2456.4,0.752]
[1728844247290,4.86943,2456.8,2456.4,0.55]
[1728844247482,0.7991,2456.8,2456.4,0.55]
[1728844247973,0.7991,2456.8,2456.4,4.62097]
[1728844248173,4.07028,2456.9,2456.4,4.62097]
[1728844248610,0.7991,2457.0,2456.6,4.62066]
[1728844248815,4.06993,2457.1,2456.6,8.69132]
[1728844249002,4.06993,2457.1,2456.6,4.62066]
[1728844249511,0.7991,2457.2,2456.8,4.07031]
[1728844250435,4.06961,2457.3,2456.9,0.83339597]
[1728844250924,8.13921,2457.3,2456.9,0.83339597]
[1728844251076,8.1392,2457.3,2456.9,0.752]
[1728844253124,4.0696,2457.3,2456.9,0.752]
[1728844253299,8.13923,2457.3,2456.9,0.752]
[1728844253531,4.06968,2457.2,2456.9,0.752]
[1728844256515,4.0696,2457.3,2456.9,0.752]
[1728844257946,4.06958,2457.3,2456.9,0.752]
[1728844258448,0.42608964,2457.2,2457.0,0.55]
[1728844258749,0.42608964,2457.2,2457.1,4.69085335]
[1728844260144,0.42608964,2457.2,2457.1,0.62102335]
[1728844260351,0.42608964,2457.2,2457.1,0.55]
[1728844261555,0.42608964,2457.2,2457.1,4.69739448]
[1728844261931,0.42608964,2457.2,2457.1,5.45049448]
[1728844262877,4.06925,2457.5,2457.1,0.55]
[1728844263592,4.84516,2457.6,2457.1,4.70121633]
[1728844264079,4.84509,2457.6,2457.3,1.50558434]
[1728844265142,5.70076132,2457.6,2457.3,1.50558434]
[1728844265481,5.69967697,2457.6,2457.3,1.50558434]
[1728844265687,4.06917,2457.5,2457.0,4.823]
[1728844265850,4.06917,2457.5,2457.0,6.32858434]
[1728844266057,4.06917,2457.5,2457.1,1.50558434]
[1728844266381,8.13843,2457.5,2457.2,1.50558434]
[1728844266874,4.06917,2457.5,2457.2,1.50558434]
[1728844267040,4.92484132,2457.5,2457.2,1.50558434]
[1728844267394,4.06917,2457.5,2457.2,1.50558434]
[1728844267881,1.63058697,2457.6,2457.4,1.50558434]
[1728844268042,0.85567132,2457.6,2457.4,1.50558434]
[1728844269062,0.85567132,2457.6,2457.3,0.7531]
[1728844269063,4.92468132,2457.6,2457.3,2.25868434]
[1728844269990,0.85567132,2457.6,2457.3,0.7531]
[1728844270488,0.85567132,2457.6,2457.3,4.82258]
[1728844271586,0.85567132,2457.6,2457.3,0.7531]
[1728844271793,0.85567132,2457.6,2457.3,4.90397499]
[1728844272090,0.85567132,2457.6,2457.4,4.61926]
[1728844272249,0.85567132,2457.8,2457.6,4.61901]
[1728844272448,0.97640062,2457.9,2457.6,5.45347985]
[1728844273084,0.1207293,2457.9,2457.6,5.45347985]
[1728844273292,0.1207293,2457.9,2457.7,4.06883]
[1728844273498,0.1207293,2457.9,2457.6,1.3031]
[1728844273743,0.1207293,2457.9,2457.7,0.08136852]
[1728844275543,4.06869,2457.8,2457.3,8.31733823]
[1728844275836,4.06869,2457.8,2457.4,0.55]
[1728844275837,4.84469,2457.8,2457.4,0.55]
[1728844276546,0.776,2457.8,2457.4,0.55]
[1728844277215,4.84471,2457.8,2457.4,0.55]
[1728844277752,4.84471,2457.8,2457.4,0.63137784]
[1728844277922,4.1893693,2457.9,2457.4,0.63137784]
[1728844277923,0.97400555,2457.9,2457.6,1.3419]
[1728844278245,0.97400555,2457.9,2457.6,1.42326908]
[1728844279163,0.97400555,2457.9,2457.6,1.3419]
[1728844279314,4.92203625,2457.8,2457.4,1.3419]
[1728844280550,0.85327625,2457.8,2457.4,0.55]
[1728844280754,0.85327625,2457.8,2457.2,0.7919]
[1728844280755,4.06923,2457.5,2457.2,0.7919]
[1728844281421,8.1382,2457.6,2457.2,0.7919]
[1728844281610,8.13822,2457.6,2457.2,0.8732828]
[1728844281950,4.0691,2457.6,2457.3,0.55]
[1728844282655,8.13823,2457.6,2457.3,0.55]
[1728844283651,4.06917,2457.5,2457.3,0.55]
[1728844283855,4.06903,2457.6,2457.3,0.55]
[1728844284705,8.13819,2457.6,2457.3,0.55]
[1728844284944,8.99146625,2457.6,2457.3,0.55]
[1728844285143,8.13818,2457.6,2457.3,0.55]
[1728844285658,4.06903,2457.6,2457.3,0.55]
[1728844285904,4.06918,2457.5,2457.3,0.55]
[1728844286184,4.06952,2457.3,2457.1,0.55]
[1728844286524,4.06934,2457.4,2457.1,0.55]
[1728844286920,4.92244625,2457.5,2457.1,0.55]
[1728844287167,8.99174625,2457.5,2457.1,0.55]
[1728844287466,4.92244625,2457.5,2457.1,0.55]
[1728844287663,8.99170625,2457.5,2457.1,0.55]
[1728844287862,4.06938,2457.4,2457.1,0.55]
[1728844291200,0.85327625,2457.5,2457.1,0.55]
[1728844291501,4.92247625,2457.5,2457.1,0.55]
[1728844291669,0.4260405,2457.4,2457.1,0.55]
[1728844292069,0.4260405,2457.4,2457.1,4.70113648]
[1728844293972,0.4260405,2457.4,2457.1,0.63138648]
[1728844294201,1.27931675,2457.4,2457.1,0.63138648]
[1728844294369,1.27931675,2457.4,2457.1,4.70120648]
[1728844295811,0.85327625,2457.5,2457.1,4.70120648]
[1728844296337,0.85327625,2457.4,2457.1,4.70120648]
[1728844297611,0.85327625,2457.5,2457.3,5.4331]
[1728844297812,0.85327625,2457.6,2457.4,4.06934]
[1728844298137,0.85327625,2457.7,2457.6,0.8137]
[1728844298351,0.85327625,2457.8,2457.7,0.55]
[1728844298634,0.97400555,2457.9,2457.7,0.55]
[1728844300556,0.97400555,2457.9,2457.7,4.61876]
[1728844300763,0.97400555,2457.9,2457.8,4.61867]
[1728844302534,0.97400555,2457.9,2457.8,0.55]
[1728844302729,0.97400555,2457.9,2457.8,4.61867]
[1728844302956,0.1207293,2457.9,2457.7,0.55]
[1728844303127,0.97400555,2457.9,2457.7,4.61882]
[1728844303571,0.1207293,2457.9,2457.7,54.61882]
[1728844303999,0.97400555,2457.9,2457.7,54.61882]
[1728844304295,0.97400555,2457.9,2457.7,50.55]
[1728844306106,0.97400555,2457.9,2457.7,54.61884]
[1728844306810,0.97400555,2457.9,2457.7,50.55]
[1728844307472,0.97400555,2457.9,2457.7,50.0]
[1728844307659,1.67147625,2457.8,2457.7,50.0]
[1728844307965,0.8182,2457.8,2457.7,50.0]
[1728844308361,1.67147625,2457.8,2457.7,50.0]
[1728844309000,2.09746972,2457.8,2457.7,50.0]
[1728844309501,1.24419347,2457.8,2457.7,50.0]
[1728844309664,2.09746972,2457.8,2457.7,50.0]
[1728844310316,0.8182,2457.8,2457.7,50.0]
[1728844311383,1.67147625,2457.8,2457.7,50.0]
[1728844311890,0.85327625,2457.8,2457.7,50.0]
[1728844314732,4.92194625,2457.8,2457.7,50.0]
[1728844314915,7.88500875,2457.8,2457.7,50.0]
[1728844316307,7.88718522,2457.8,2457.7,50.0]
[1728844317191,8.31383378,2457.8,2457.7,50.0]
[1728844319022,6.17845624,2457.8,2457.7,50.0]
[1728844319902,9.17845624,2457.8,2457.7,50.0]
[1728844323524,7.88687,2457.8,2457.7,50.0]
[1728844323728,10.02254421,2457.8,2457.7,50.0]
[1728844326032,10.4485889,2457.8,2457.7,50.0]
[1728844327007,10.44843008,2457.8,2457.7,50.0]
[1728844333542,9.63023008,2457.8,2457.7,50.0]
[1728844333831,9.00046915,2457.8,2457.7,50.0]
[1728844334571,11.13598454,2457.8,2457.7,50.0]
[1728844335751,9.00046915,2457.8,2457.7,50.0]
[1728844336154,11.13598454,2457.8,2457.7,50.0]
[1728844336479,11.13593693,2457.8,2457.7,50.0]
[1728844336857,9.00046915,2457.8,2457.7,50.0]
[1728844337290,11.13593693,2457.8,2457.7,50.0]
[1728844338495,11.89583693,2457.8,2457.7,50.0]
[1728844339060,9.76036915,2457.8,2457.7,50.0]
[1728844339793,11.89583693,2457.8,2457.7,50.0]
[1728844339999,9.76036915,2457.8,2457.7,50.0]
[1728844340295,11.89583693,2457.8,2457.7,50.0]
[1728844341167,11.89600326,2457.8,2457.7,50.0]
[1728844341907,9.00046915,2457.8,2457.7,50.0]
[1728844342271,10.7089643,2457.8,2457.7,50.0]
[1728844344316,11.13610326,2457.8,2457.7,50.0]
[1728844344899,9.00046915,2457.8,2457.7,50.0]
[1728844345076,11.13610326,2457.8,2457.7,50.0]
[1728844345537,9.00046915,2457.8,2457.7,50.0]
[1728844345811,10.70912275,2457.8,2457.7,50.0]
[1728844346320,10.70912634,2457.8,2457.7,50.0]
[1728844346611,9.00046915,2457.8,2457.7,50.0]
[1728844347315,10.70920584,2457.8,2457.7,50.0]
[1728844347508,9.00046915,2457.8,2457.7,50.0]
[1728844348009,11.13672436,2457.8,2457.7,50.0]
[1728844350829,11.13725328,2457.8,2457.7,50.0]
[1728844351030,10.71120859,2457.8,2457.7,50.0]
[1728844351661,10.71149557,2457.8,2457.7,50.0]
[1728844351871,10.71149865,2457.8,2457.7,50.0]
[1728844353783,6.64282865,2457.8,2457.7,50.0]
[1728844353946,10.71149865,2457.8,2457.7,50.0]
[1728844354143,10.71190381,2457.8,2457.7,50.0]
[1728844354365,7.71190381,2457.8,2457.7,50.0]
[1728844355468,7.71211609,2457.8,2457.7,50.0]
[1728844356150,3.64344609,2457.8,2457.7,50.55]
[1728844356554,7.71211609,2457.8,2457.7,50.55]
[1728844358347,5.57442446,2457.8,2457.7,50.55]
[1728844359382,5.57442446,2457.8,2457.7,50.0]
[1728844366692,6.00045398,2457.8,2457.7,50.0]
[1728844372204,4.49469952,2457.8,2457.7,50.0]
[1728844372407,6.00045398,2457.8,2457.7,50.0]
[1728844377687,6.00045398,2457.8,2457.7,50.55]
[1728844378086,0.42602952,2457.8,2457.7,50.55]
[1728844378284,1.93178398,2457.8,2457.7,50.55]
[1728844379293,0.42602952,2457.8,2457.7,50.55]
[1728844379496,1.93178398,2457.8,2457.7,50.55]
[1728844379703,0.42602952,2457.8,2457.7,50.55]
[1728844380034,0.42602952,2457.8,2457.7,51.3337]
[1728844380035,2.139993,2457.8,2457.7,51.3337]
[1728844381413,2.139993,2457.8,2457.7,55.40254]
[1728844382082,1.2838054,2457.8,2457.7,56.90829446]
[1728844382286,0.1207293,2457.9,2457.8,4.61867]
[1728844382519,0.1207293,2457.9,2457.8,6.98948118]
[1728844382719,0.1207293,2457.9,2457.8,7.11689175]
[1728844382923,0.1207293,2457.9,2457.8,7.69281603]
[1728844383097,0.1207293,2457.9,2457.8,7.82022617]
[1728844383303,0.1207293,2457.9,2457.8,6.98948118]
[1728844383483,0.1207293,2457.9,2457.8,7.11688732]
[1728844383687,0.1207293,2457.9,2457.8,7.81971648]
[1728844384233,0.1207293,2457.9,2457.8,6.90812446]
[1728844384535,0.1207293,2457.9,2457.8,5.40237]
[1728844384830,0.1207293,2457.9,2457.8,6.90812446]
[1728844386587,0.1207293,2457.9,2457.8,5.40237]
[1728844390250,0.1207293,2457.9,2457.8,5.48372286]
[1728844393145,0.1207293,2457.9,2457.8,9.98947732]
[1728844393454,0.1207293,2457.9,2457.8,9.90812446]
[1728844395217,0.1207293,2457.9,2457.8,8.40237]
[1728844399935,0.1207293,2457.9,2457.8,5.40237]
[1728844400871,1.62648376,2457.9,2457.7,50.0]
[1728844401074,1.50575446,2457.8,2457.7,50.0]
[1728844401989,5.57442446,2457.8,2457.7,50.0]
[1728844403179,1.50575446,2457.8,2457.7,50.55]
[1728844403692,5.57442446,2457.8,2457.7,50.55]
[1728844403852,7.89087892,2457.8,2457.7,50.0]
[1728844404058,9.09889174,2457.8,2457.7,50.0]
[1728844405076,9.09889174,2457.8,2457.7,50.55]
[1728844405770,9.09889174,2457.8,2457.7,50.0]
[1728844409480,10.37723721,2457.8,2457.7,50.0]
[1728844410491,9.09889174,2457.8,2457.7,50.0]
[1728844410982,10.37723721,2457.8,2457.7,50.0]
[1728844414065,10.44806508,2457.8,2457.7,50.0]
[1728844414975,13.44806508,2457.8,2457.7,50.0]
[1728844424407,12.16971961,2457.8,2457.7,50.0]
[1728844426649,13.44806508,2457.8,2457.7,50.0]
[1728844429139,13.87418024,2457.8,2457.7,50.0]
[1728844429554,14.29921909,2457.8,2457.7,46.09841324]
[1728844430064,12.16971961,2457.8,2457.7,46.09841324]
[1728844431720,12.57717944,2457.8,2457.7,46.09841324]
[1728844432115,13.00272591,2457.8,2457.7,46.09841324]
[1728844432365,13.00272591,2457.8,2457.7,42.19682648]
[1728844435465,13.00272591,2457.8,2457.7,38.29523972]
[1728844438466,13.00272591,2457.8,2457.7,34.39365296]
[1728844440772,13.48631426,2457.8,2457.7,20.4280192]
[1728844440956,13.48631426,2457.8,2457.7,18.14457286]
[1728844440957,33.76501426,2457.8,2457.7,18.14457286]
[1728844441131,30.34480534,2457.8,2457.7,18.14457286]
[1728844441334,32.87272591,2457.8,2457.7,16.02171603]
[1728844442249,33.28092591,2457.8,2457.7,16.02171603]
[1728844442461,29.86121699,2457.8,2457.7,16.02171603]
[1728844442661,35.85453226,2457.8,2457.7,16.02171603]
[1728844443382,35.85541064,2457.8,2457.7,16.02171603]
[1728844443800,35.85541064,2457.8,2457.7,14.2429861]
[1728844444159,32.87272591,2457.8,2457.7,14.2429861]
[1728844444479,32.87272591,2457.8,2457.0,0.42272727]
[1728844444480,7.06983,2457.1,2457.0,0.42272727]
[1728844444690,11.35978628,2457.1,2457.0,0.42272727]
[1728844445061,11.43063549,2457.1,2457.0,0.42272727]
[1728844445264,13.86810237,2457.1,2457.0,0.42272727]
[1728844447155,15.07175149,2457.1,2457.0,0.42272727]
[1728844447352,13.3665595,2457.1,2457.0,0.42272727]
[1728844447592,15.07247493,2457.1,2457.0,0.42272727]
[1728844448161,13.3665595,2457.1,2457.0,0.42272727]
[1728844448389,14.29519815,2457.1,2457.0,0.42272727]
[1728844453900,12.5890595,2457.1,2457.0,0.42272727]
[1728844454080,14.29517028,2457.1,2457.0,0.42272727]
[1728844454338,15.49894447,2457.1,2457.0,0.42272727]
[1728844455093,15.49937283,2457.1,2457.0,0.42272727]
[1728844455288,13.3665595,2457.1,2457.0,0.42272727]
[1728844459552,10.35505058,2457.1,2457.0,0.42272727]
[1728844459841,5.84668448,2457.1,2457.0,1.24322727]
[1728844460147,5.64643367,2457.1,2457.0,1.24322727]
[1728844460299,5.57558446,2457.1,2457.0,1.24322727]
[1728844460948,4.06983,2457.1,2457.0,1.24322727]
[1728844461131,5.57558446,2457.1,2457.0,1.24322727]
[1728844468402,6.85497704,2457.1,2457.0,1.24322727]
[1728844471762,6.85497704,2457.1,2457.0,1.79322727]
[1728844475073,6.85758873,2457.1,2457.0,1.79322727]
[1728844475315,5.57558446,2457.1,2457.0,1.79322727]
[1728844475480,6.85772763,2457.1,2457.0,1.79322727]
[1728844476710,6.85773682,2457.1,2457.0,1.79322727]
[1728844487330,9.56008425,2457.1,2457.0,0.42272727]
[1728844487522,14.49633655,2457.1,2457.0,0.42272727]
[1728844487820,12.99058209,2457.1,2457.0,0.42272727]
[1728844488128,13.06142827,2457.1,2457.0,0.42272727]
[1728844488621,14.56718273,2457.1,2457.0,0.42272727]
[1728844489121,12.43067962,2457.1,2457.0,0.42272727]
[1728844489270,14.5676587,2457.1,2457.0,0.42272727]
[1728844489931,13.06190424,2457.1,2457.0,0.42272727]
[1728844490225,14.56768583,2457.1,2457.0,0.42272727]
[1728844490430,12.43067962,2457.1,2457.0,0.42272727]
[1728844496255,12.38067962,2457.1,2457.0,0.42272727]
[1728844500670,9.3691707,2457.1,2457.0,0.42272727]
[1728844500856,12.38067962,2457.1,2457.0,0.42272727]
[1728844501994,12.86426797,2457.1,2457.0,0.42272727]
[1728844502296,12.38067962,2457.1,2457.0,0.42272727]
[1728844502658,12.33067962,2457.1,2457.0,0.42272727]
[1728844502861,9.3191707,2457.1,2457.0,0.42272727]
[1728844503210,10.82492516,2457.1,2457.0,0.42272727]
[1728844504806,12.33067962,2457.1,2457.0,0.42272727]
[1728844506403,14.89691847,2457.1,2457.0,0.42272727]
[1728844509301,12.33067962,2457.1,2457.0,0.42272727]
[1728844509605,14.89642029,2457.1,2457.0,0.42272727]
[1728844511218,12.33067962,2457.1,2457.0,0.42272727]
[1728844511405,14.89601727,2457.1,2457.0,0.42272727]
[1728844516125,14.89579901,2457.1,2457.0,0.42272727]
[1728844517322,10.02342516,2457.1,2457.0,0.42272727]
[1728844517517,8.54643064,2457.1,2457.0,0.42272727]
[1728844518412,10.68388634,2457.1,2457.0,0.42272727]
[1728844518635,8.54643064,2457.1,2457.0,0.42272727]
[1728844518838,9.17811764,2457.1,2457.0,0.42272727]
[1728844519049,10.6838721,2457.1,2457.0,0.42272727]
[1728844520849,10.68402814,2457.1,2457.0,0.42272727]
[1728844523759,7.68402814,2457.1,2457.0,0.42272727]
[1728844525612,7.68453616,2457.1,2457.0,0.42272727]
[1728844528761,7.6849835,2457.1,2457.0,0.42272727]
[1728844529228,7.6849845,2457.1,2457.0,0.42272727]
[1728844529547,5.54643064,2457.1,2457.0,0.42272727]
[1728844529957,6.76461637,2457.1,2457.0,0.42272727]
[1728844533014,9.02217083,2457.1,2457.0,0.42272727]
[1728844533212,14.58869393,2457.1,2457.0,0.42272727]
[1728844533419,12.33113947,2457.1,2457.0,0.42272727]
[1728844534856,13.83689393,2457.1,2457.0,0.42272727]
[1728844535353,13.83785307,2457.1,2457.0,0.42272727]
[1728844537558,12.02217083,2457.1,2457.0,0.42272727]
[1728844537757,15.01756678,2457.1,2457.0,0.42272727]
[1728844538643,12.02217083,2457.1,2457.0,0.42272727]
[1728844538819,12.50575918,2457.1,2457.0,0.42272727]
[1728844539270,4.07033,2456.8,2456.7,0.45445269]
[1728844539420,11.96969092,2456.8,2456.7,0.45445269]
[1728844540063,12.04056253,2456.8,2456.7,0.45445269]
[1728844541715,7.84446,2456.6,2456.5,0.48617811]
[1728844542021,30.72596892,2456.6,2456.5,0.48617811]
[1728844542222,33.71989998,2456.6,2456.5,0.48617811]
[1728844542518,37.82254824,2456.6,2456.5,0.48617811]
[1728844544160,34.82861718,2456.6,2456.5,0.48617811]
[1728844544395,37.81891381,2456.6,2456.5,0.48617811]
[1728844544835,37.81893914,2456.6,2456.5,0.48617811]
[1728844545035,34.82861718,2456.6,2456.5,0.48617811]
[1728844545439,37.81773525,2456.6,2456.5,0.48617811]
[1728844546465,34.82861718,2456.6,2456.5,0.48617811]
[1728844546827,3.0,2456.5,2456.2,0.51790353]
[1728844547025,11.91301216,2456.3,2456.2,0.51790353]
[1728844547358,10.85756892,2456.3,2456.2,0.51790353]
[1728844548261,13.41876662,2456.3,2456.2,0.51790353]
[1728844548461,10.85756892,2456.3,2456.2,0.51790353]